Cogmind - Beta 14 @@@ ROGUE MODE // 2024.08.25 @ 22:55:51 Player: Nuclear Winter Man Result: Destroyed by G-34 Mercenary with Small Laser Performance ------------- Evolutions (1) 500 Regions Visited (3) 600 Robots Destroyed (7) 35 Value Destroyed (151) 151 Prototype IDs (0) 0 Alien Tech Used (0) 0 Bonus (0) 0 TOTAL SCORE: 1286 Bonus ------- None Cogmind --------- Core Integrity 0/400 Matter 232/300 Energy 200/200 System Corruption 0% Temperature Cool (6) Movement Core (50) Location -9/Mines Parts ------- > --- POWER (1) -------- (None) > --- PROPULSION (4) --- (None) > --- UTILITY (2) ------ Small Battery > --- WEAPON (2) ------- (None) > --- INVENTORY (5) ---- Light Ion Engine Peak State ------------ > --- POWER ------------ Ion Engine > --- PROPULSION ------- Aluminum Leg Aluminum Leg > --- UTILITY ---------- Small Storage Unit > --- WEAPON ----------- Medium Laser Assault Rifle > --- INVENTORY -------- Light Ion Engine EM Pulse Gun [Rating: 6] Favorites ----------- Power Ion Engine Engine Ion Engine Propulsion Aluminum Leg Leg Aluminum Leg Utility Small Storage Unit Device Seismic Detector Storage Small Storage Unit Protection Medium Armor Plating Weapon Medium Laser Energy Gun Medium Laser Ballistic Gun Assault Rifle Launcher Grenade Launcher Build | -11 -10 -9 -9 ------- Run | Yrd Mat Mat Min Slots Evolved 2 | . . 2 . Power . | . . . . Propulsion 2 | . . 2 . Utility . | . . . . Weapon . | . . . . Parts Attached 13 | 7 . 5 1 Power 2 | 1 . . 1 Engine 2 | 1 . . 1 Core . | . . . . Reactor . | . . . . Propulsion 2 | 2 . . . Treads . | . . . . Leg 2 | 2 . . . Wheel . | . . . . Hover . | . . . . Flight . | . . . . Utility 4 | 1 . 3 . Device 1 | . . 1 . Storage 2 | 1 . 1 . Processor . | . . . . Hackware . | . . . . Protection 1 | . . 1 . Artifact . | . . . . Weapon 5 | 3 . 2 . Energy Gun 3 | 2 . 1 . Energy Cannon . | . . . . Ballistic Gun 1 | 1 . . . Ballistic Cannon . | . . . . Launcher 1 | . . 1 . Special Weapon . | . . . . Impact Weapon . | . . . . Slashing Weapon . | . . . . Piercing Weapon . | . . . . Special Melee Weapon . | . . . . Unidentified Prototypes . | . . . . Parts Lost 9 | . . 8 1 Power 2 | . . 1 1 Propulsion 2 | . . 2 . Utility 2 | . . 2 . Weapon 3 | . . 3 . Highest Loss Streak 3 | . . 3 2 To Critical Strikes . | . . . . Average Slot Usage (%) 54 | . 85 41 22 Engine 10 | . 14 8 11 Leg 15 | . 28 10 . Device 4 | . . 6 . Storage 12 | . 14 11 11 Energy Gun 10 | . 28 2 . Peak Build Rating 6 | 6 6 6 2 Average Rating 4 | 4 6 3 1 On Entrance 3 | . 6 6 1 Naked Turns . | . . . . Heaviest Build 15 | 14 14 15 4 Greatest Support 20 | 20 20 20 3 Greatest Overweight (x) 3 | . . 3 1 Average Overweight (x) . | . . . 1 Largest Inventory Capacity 8 | 8 8 8 5 Average Capacity 7 | 7 8 7 5 Most Carried 4 | 4 3 2 1 Average Carried 1 | 1 2 1 1 Final Capacity 8 | 8 8 5 5 Final Carried 2 | 2 2 2 1 Class Distribution -------------------- 100% | Mutant Dominant Class ---------------- Mutant | -10/Materials Mutant | -9/Materials Mutant | -9/Mines Resources | -11 -10 -9 -9 ----------- Run | Yrd Mat Mat Min Matter Collected 204 | 191 . 13 . Remotely . | . . . . Salvage Created 100 | . 29 71 . Parts 14 | . 2 12 . Haulers Intercepted . | . . . . Recyclers Shooed . | . . . . Parts Field Recycled . | . . . . Retrieved Matter . | . . . . Parts Self-Destructed . | . . . . Prevented . | . . . . Kills | -11 -10 -9 -9 ------- Run | Yrd Mat Mat Min Combat Hostiles Destroyed 4 | . 1 3 . Melee 1 | . . 1 . Guns 2 | . 1 1 . AOE 1 | . . 1 . Classes Destroyed 5 | . 1 4 . Builder 2 | . . 2 . Tunneler 1 | . . 1 . Swarmer 1 | . . 1 . Grunt 1 | . 1 . . Sentry 2 | . . 2 . Best Kill Streak 5 | . 1 5 . Combat Bots Only 2 | . 1 2 . Max Kills in Single Turn 2 | . 1 2 . Gunslinging . | . . . . Exploded 1 | . . 1 . Melee 1 | . . 1 . Uniques/NPCs Destroyed . | . . . . Combat | -11 -10 -9 -9 -------- Run | Yrd Mat Mat Min Hostile Shots Fired 166 | . 34 124 8 Missed 61 | . 13 45 3 Damage Taken 1189 | . 223 859 107 Core 422 | . 16 342 64 Absorbed by Shields . | . . . . Core Remaining (%) 96 | 100 93 . . Volleys Fired 17 | . 8 9 . Largest 2 | . 2 2 . Hottest 90 | . 90 70 . Shots Fired 26 | . 16 10 . Gun 20 | . 16 4 . Cannon . | . . . . Launcher 6 | . . 6 . Special . | . . . . Kinetic . | . . . . Thermal 11 | . 8 3 . Explosive 6 | . . 6 . Electromagnetic 9 | . 8 1 . Robot Hit Streak 7 | . 6 7 . Robot Miss Streak 2 | . 2 1 . Penetration Max . | . . . . Secondary Targets 1 | . 1 . . Max Gunslinging Chain 1 | . 1 . . Shots Hit Robots 19 | . 11 8 . Core Hits 24 | . 3 16 5 Critical Kills . | . . . . Critical Parts Destroyed . | . . . . Critical Strikes 1 | . . 1 . Burn 1 | . . 1 . Melee Attacks . | . . . . Impact . | . . . . Slashing . | . . . . Piercing . | . . . . Sneak Attacks . | . . . . Combat Hostiles . | . . . . Follow-up Attacks . | . . . . Damage Inflicted 514 | . 225 273 16 Guns 172 | . 147 25 . Cannons . | . . . . Explosions 309 | . 78 231 . Melee . | . . . . Ramming 33 | . . 17 16 Kinetic . | . . . . Thermal 180 | . 155 25 . Explosive 231 | . . 231 . Electromagnetic 70 | . 70 . . Impact . | . . . . Slashing . | . . . . Piercing . | . . . . Highest Corruption . | . . . . Average Corruption . | . . . . Corruption Purged . | . . . . Corruption Blocked . | . . . . Overload Shots . | . . . . Overflow Damage 2 | . 2 . . Projectiles . | . . . . Explosions 2 | . 2 . . Melee . | . . . . Knockbacks . | . . . . Impact . | . . . . Kinetic . | . . . . Secondary . | . . . . Self-Inflicted Damage 6 | . . . 6 Shots . | . . . . Rammed 6 | . . . 6 Targets Rammed 19 | . . 13 6 Kicked 13 | . . 13 . Crushed . | . . . . Highest Temperature 193 | . 193 19 . Average Temperature 69 | . 92 8 . Received Heat Transfer 411 | . 105 288 18 Siege Activations . | . . . . Robots Corrupted . | . . . . Combat Hostiles . | . . . . Parts Fried . | . . . . Impact Corruptions . | . . . . Robots Melted . | . . . . Combat Hostiles . | . . . . Parts Melted . | . . . . Heat Transferred 470 | . 322 148 . Parts Sabotaged . | . . . . Parts Stolen . | . . . . Parts Stripped . | . . . . Power Chain Reactions 1 | . 1 . . Alert | -11 -10 -9 -9 ------- Run | Yrd Mat Mat Min Peak Influence 153 | . 84 153 13 Initial 35 | . . 35 13 Average 68 | . 15 101 11 Maximum Alert Level . | . . . . Low Security (%) 100 | 100 100 100 100 Level 1 . | . . . . Level 2 . | . . . . Level 3 . | . . . . Level 4 . | . . . . Level 5 . | . . . . High Security . | . . . . Max Security . | . . . . Squads Dispatched 2 | . 1 1 . Investigation 1 | . 1 . . Extermination . | . . . . Reinforcement 1 | . . 1 . Assault . | . . . . Garrison . | . . . . Intercept . | . . . . Searches Triggered . | . . . . Construction Impeded . | . . . . Haulers Reinforced . | . . . . Active Scanning Responses . | . . . . Cargo Convoy Interrupts . | . . . . Stealth | -11 -10 -9 -9 --------- Run | Yrd Mat Mat Min Distress Signals 2 | . 1 1 . Communications Jammed . | . . . . Distress Signals . | . . . . Times Spotted 31 | . 11 18 2 Peak Tracking Total 8 | . 6 8 2 Tactical Retreats 5 | . 3 2 . Traps | -11 -10 -9 -9 ------- Run | Yrd Mat Mat Min Traps Triggered . | . . . . Indirectly . | . . . . Trap Hack Attempts . | . . . . Triggered . | . . . . Disarmed . | . . . . Reprogrammed . | . . . . Reused . | . . . . Traps Extracted . | . . . . Installed . | . . . . Triggered . | . . . . Machines | -11 -10 -9 -9 ---------- Run | Yrd Mat Mat Min Machines Disabled . | . . . . Max in Single Turn . | . . . . Machines Repaired . | . . . . Machines Dismantled . | . . . . Machines Sabotaged . | . . . . Overloaded Fab Kills . | . . . . Hacking | -11 -10 -9 -9 --------- Run | Yrd Mat Mat Min Machines Accessed 1 | . 1 . . Terminals . | . . . . Fabricators . | . . . . Repair Stations . | . . . . Recycling Units 1 | . 1 . . Scanalyzers . | . . . . Garrison Access . | . . . . Total Hacks 4 | . 4 . . Successful 4 | . 4 . . Failed . | . . . . Catastrophic . | . . . . Database Lockouts . | . . . . Manual . | . . . . Terminals . | . . . . Fabricators . | . . . . Repair Stations . | . . . . Recycling Units 4 | . 4 . . Scanalyzers . | . . . . Garrison Access . | . . . . Terminal Hacks . | . . . . Fabricator Hacks . | . . . . Repair Station Hacks . | . . . . Recycling Unit Hacks 4 | . 4 . . Recycle Component 1 | . 1 . . Process 2 | . 2 . . Report Inventory 1 | . 1 . . Scanalyzer . | . . . . Garrison Access Hacks . | . . . . Unauthorized Hacks . | . . . . Terminals . | . . . . Fabricators . | . . . . Repair Stations . | . . . . Recycling Units . | . . . . Scanalyzers . | . . . . Garrison Access . | . . . . Data Cores Recovered . | . . . . Used . | . . . . Hacking Detections 1 | . 1 . . Full Trace Events 1 | . 1 . . Feedback Events . | . . . . Feedback Blocked . | . . . . Robot Schematics Acquired . | . . . . Robots Built . | . . . . Authchips . | . . . . Time . | . . . . Total Robot Build Rating . | . . . . Part Schematics Acquired . | . . . . Parts Built . | . . . . Authchips . | . . . . Time . | . . . . Total Part Build Rating . | . . . . Parts Repaired . | . . . . Time . | . . . . Parts Recycled 1 | . 1 . . Recycled Matter 50 | . 50 . . Retrieved Matter . | . . . . Retrieved Components . | . . . . Parts Scanalyzed . | . . . . Part Schematics Acquired . | . . . . Parts Damaged . | . . . . Bothacking | -11 -10 -9 -9 ------------ Run | Yrd Mat Mat Min Used RIF Installer . | . . . . Robots Hacked . | . . . . Non-combat . | . . . . Combat . | . . . . Robot Hacks Applied . | . . . . Relay Couplers Released . | . . . . Fabnet Peak Effective % . | . . . . Robots Rewired . | . . . . Allies Hacked . | . . . . Hacks Repelled . | . . . . Allies | -11 -10 -9 -9 -------- Run | Yrd Mat Mat Min Total Allies . | . . . . Largest Group . | . . . . Highest-Rated Group . | . . . . Highest-Rated Ally . | . . . . Total Orders . | . . . . Ally Attacks . | . . . . Total Damage . | . . . . Kills . | . . . . Allies Corrupted . | . . . . Allies Melted . | . . . . Intel | -11 -10 -9 -9 ------- Run | Yrd Mat Mat Min Robot Analysis Total . | . . . . Derelict Logs Recovered . | . . . . Drone Launches . | . . . . Drone Recoveries . | . . . . Exploration | -11 -10 -9 -9 ------------- Run | Yrd Mat Mat Min Turns Passed 787 | 65 216 496 10 Spaces Moved 490 | 47 160 280 3 Core 117 | 6 . 108 3 Treads . | . . . . Legs 373 | 41 160 172 . Wheels . | . . . . Hover . | . . . . Flight . | . . . . Fastest Speed 50 | 50 120 50 100 Average Speed 132 | 111 120 144 100 Slowest Speed 200 | 120 120 200 100 Overloaded Moves . | . . . . Propulsion Burnouts . | . . . . Robots Hopped . | . . . . Cave-ins Triggered . | . . . . Exploration Rate (%) 12 | 4 16 25 3 Regions Visited 3 Branch Regions 1 Pre-discovered Areas . | . . . . Known Exits Taken . | . . . . Unknown Exits Taken 3 | 1 1 1 . Scrap Searched . | . . . . Spaces Dug . | . . . . Terrain Destroyed 20 | . 4 16 . Melee . | . . . . Projectile . | . . . . AOE 20 | . 4 16 . Terrain Rammed . | . . . . Walls Destroyed . | . . . . Machines Disabled . | . . . . Actions | -11 -10 -9 -9 --------- Run | Yrd Mat Mat Min Total 584 | 58 168 348 10 Wait 40 | . . 40 . Move 487 | 46 159 279 3 Hop . | . . . . Pick Up 6 | 4 1 1 . Fast Attach 7 | 4 . 3 . Attach 5 | 3 . 1 1 Detach 1 | 1 . . . Swap 1 | . . 1 . Drop 1 | . . 1 . Fire 17 | . 8 9 . Melee . | . . . . Ram 6 | . . . 6 Kick 13 | . . 13 . Crush . | . . . . Escape Stasis . | . . . . Rewire . | . . . . Trap . | . . . . Miscellaneous . | . . . . Route ------- -11/Scrapyard -10/Materials -9/Materials -9/Mines History --------- Turn | Location | Event 17 | -11/Scrapyard | Discovered new exit (range 16) 66 | -11/Scrapyard | Entered Materials 264 | -10/Materials | Discovered new exit (range 15) 282 | -10/Materials | Entered another Materials area 282 | -9/Materials | Evolved 2 slots: Propulsion x2 303 | -9/Materials | Build established: Mutant 403 | -9/Materials | Lost 3 parts (1n2w) 697 | -9/Materials | Lost 3 parts (1p1n1u) 735 | -9/Materials | Core integrity fell below 50% 756 | -9/Materials | Discovered new exit (range 16) 777 | -9/Materials | Core integrity fell below 20% 778 | -9/Materials | Entered Mines 788 | -9/Mines | Destroyed by G-34 Mercenary with Small Laser Last Messages --------------- Acquired Med. Armor Plating. U-05 Engineer lays Concrete. K-01 Serf collects debris. U-05 Engineer lays Concrete. EXIT=FOUND R-06 Scavenger collects Sml. Storage Unit. G-34 Mercenary suffers critical hit (Burn). G-34 Mercenary destroyed. R-06 Scavenger collects Aluminum Leg. Med. Armor Plating destroyed. Critical hit (Burn: +37). LOCATION=UNKNOWN GOAL=ESCAPE Something is scanning the area. Slammed into L-31 Rogue. Lgt. Ion Engine broken. Destabilizing: Short circuit. Slammed into L-31 Rogue. Broken Lgt. Ion Engine destroyed. Slammed into L-31 Rogue. Map ----- +----------------------------------------------------+ | ?????????????????????????????????????????????????? | | ?????????????????????????????????????????????????? | | ?????????????????????????????????????????????????? | | ?????????????????????????????????????????????????? | | ?????????????????????????????????????????????????? | | ?????????????????????????????????????????????????? | | ?????????????????????????????????????????????????? | | ?????????????????????????????????????????????????? | | ?????????????????????????????????????????????????? | | ?????????????????????????????????????????????????? | | ?????????????????????????????????????????????????? | | ?????????????????????????????????????????????????? | | ?????????????????????????????????????????????????? | | ?????????????????????????????????????????????????? | | ?????????????????????????????????????????????????? | | ?????????????????????????????????????????????????? | | ?????????????????????????????????????????????????? | | ????????????????????????###??????????????????????? | | ????????????????????????# ??????????????????????? | | ????????????????????????# #??????????????????????? | | ????????????????????????# #??????????????????????? | | ???????????????????????## #??????????????????????? | | ?????????????????????### ##?????????????????????? | | ?????????????????????# g ##????????????????????? | | ?????????????????????# ###??????????????????? | | ?????????????????????## l@ ##?????????????????? | | ??????????????????????## #?????????????????? | | ???????????????????????## #?????????????????? | | ????????????????????????# ##?????????????????? | | ????????????????????????## ##??????????????????? | | ?????????????????????????? ##???????????????????? | | ?????????????????????????? #????????????????????? | | ?????????????????????????? #????????????????????? | | ?????????????????????????? #????????????????????? | | ?????????????????????????? ????????????????????? | | ?????????????????????????? ????????????????????? | | ?????????????????????????? #???????????????????? | | ??????????????????????????? ##???????????????????? | | ???????????????????????????##????????????????????? | | ?????????????????????????????????????????????????? | | ?????????????????????????????????????????????????? | | ?????????????????????????????????????????????????? | | ?????????????????????????????????????????????????? | | ?????????????????????????????????????????????????? | | ?????????????????????????????????????????????????? | | ?????????????????????????????????????????????????? | | ?????????????????????????????????????????????????? | | ?????????????????????????????????????????????????? | | ?????????????????????????????????????????????????? | | ?????????????????????????????????????????????????? | +----------------------------------------------------+ Best States ------------- Heat Dissipation 28 Energy Generation 10 Energy Capacity 250 Matter Stores 226 Matter Capacity 300 Sight Range 16 Terrain Scan Density 10 Armor Coverage 225 Evasion (%) 55 Item Schematics ----------------- None Robot Schematics ------------------ None Fabricated ------------ Nothing Alien Tech Used ----------------- None Achievements -------------- None Challenges ------------ None Game ------ Seed EnergyFissionCasing Manual? 0 Play Time 00:06:07 Cumulative 3.4 hours Start 2024.08.25 @ 22:49:51 End 2024.08.25 @ 22:55:51 Sessions 1 Manual Loads 0 Difficulty Rogue Special Mode None Game No. 11 Rogue 11 Adventurer 0 Explorer 0 Win Type - Total 0 Types 0/0/0/0/0/0/0/0/0 Lore% 2 Gallery% 6 Achievement% 7 Wizard Run 0 Options --------- Layout 0 ASCII 0 Keyboard 0 Movement Arrows Keybinds 0 Fullscreen 1 Font 18/SmallcapsGlow Map View 76x50 Zoom Use 0% Tactical HUD 0 Map Filters NONE Filters NONE Steam 1 RUN: 3841146f-2766-487d-ba3d-47539a123fac